bitfinex/quotes_BTCUSD_20241222
["timestamp","ask_amount","ask_price","bid_price","bid_amount"]
[1734897002209,5.428e-05,95226.0,95225.0,0.210028]
[1734897002599,5.428e-05,95226.0,95225.0,0.212028]
[1734897003844,5.428e-05,95226.0,95225.0,0.210028]
[1734897004264,5.428e-05,95226.0,95225.0,0.211028]
[1734897004480,5.428e-05,95226.0,95225.0,0.210028]
[1734897004978,0.00105428,95226.0,95225.0,0.217028]
[1734897005168,5.428e-05,95226.0,95225.0,0.3113364]
[1734897005590,0.00105428,95226.0,95225.0,0.3183364]
[1734897005951,5.428e-05,95226.0,95225.0,0.735098]
[1734897007414,0.00105428,95226.0,95225.0,0.743098]
[1734897007578,5.428e-05,95226.0,95225.0,0.735098]
[1734897008369,0.20070774,95226.0,95225.0,0.53307]
[1734897008574,0.28250774,95226.0,95225.0,0.53307]
[1734897008863,0.28150774,95226.0,95225.0,0.52507]
[1734897009008,0.28250774,95226.0,95225.0,0.53307]
[1734897009780,0.28908072,95226.0,95225.0,0.53307]
[1734897010976,0.18808072,95226.0,95225.0,0.52507]
[1734897011294,0.00762726,95226.0,95225.0,0.53007]
[1734897011572,0.00662726,95226.0,95225.0,0.52507]
[1734897011936,0.00662726,95226.0,95225.0,0.52707]
[1734897012137,5.428e-05,95226.0,95225.0,0.52507]
[1734897014350,5.428e-05,95226.0,95225.0,0.52707]
[1734897014557,5.428e-05,95226.0,95225.0,0.52507]
[1734897014913,0.42851614,95226.0,95225.0,0.52707]
[1734897015115,2.36254214,95226.0,95225.0,0.52507]
[1734897015322,2.00554214,95226.0,95225.0,0.52507]
[1734897015529,2.00554214,95226.0,95225.0,0.52707]
[1734897015739,2.01211512,95226.0,95225.0,0.52507]
[1734897016142,2.01211512,95226.0,95225.0,0.52707]
[1734897016987,1.59511512,95226.0,95225.0,0.52707]
[1734897017348,1.52411512,95226.0,95225.0,0.52507]
[1734897017564,1.51511512,95226.0,95225.0,0.52507]
[1734897018032,1.48811512,95226.0,95225.0,0.52507]
[1734897018369,1.49111512,95226.0,95225.0,0.52507]
[1734897018595,0.48678072,95226.0,95225.0,0.52507]
[1734897018783,0.28718072,95226.0,95225.0,0.52507]
[1734897018984,0.10962726,95226.0,95225.0,0.52507]
[1734897019221,0.20865064,95226.0,95225.0,0.52507]
[1734897019649,0.20224906,95226.0,95225.0,0.52507]
[1734897019994,0.1025956,95226.0,95225.0,0.52507]
[1734897021006,0.0995956,95226.0,95225.0,0.52507]
[1734897021383,0.1025956,95226.0,95225.0,0.52507]
[1734897021718,0.0995956,95226.0,95225.0,0.52507]
[1734897021918,0.0995956,95226.0,95225.0,0.52607]
[1734897022964,0.02,95230.0,95226.0,0.420052]
[1734897023142,0.02,95230.0,95228.0,0.210022]
[1734897023345,0.02,95230.0,95229.0,0.10235823]
[1734897023697,0.02,95230.0,95229.0,0.1013084]
[1734897023846,0.02,95230.0,95229.0,0.6263584]
[1734897024043,0.02,95230.0,95229.0,0.52505]
[1734897025609,0.02,95230.0,95229.0,0.52705]
[1734897026011,0.02,95230.0,95229.0,0.52505]
[1734897026215,0.02,95230.0,95229.0,0.52705]
[1734897026652,0.02,95230.0,95229.0,0.52505]
[1734897027567,0.00875,95230.0,95229.0,0.8363784]
[1734897027750,0.00875,95230.0,95229.0,0.73507]
[1734897028091,0.00875,95230.0,95229.0,0.73707]
[1734897028297,0.00875,95230.0,95229.0,0.73507]
[1734897028717,0.00875,95230.0,95229.0,0.73707]
[1734897029001,0.00875,95230.0,95229.0,0.73507]
[1734897029412,0.00875,95230.0,95229.0,0.73707]
[1734897029619,0.00875,95230.0,95229.0,0.73507]
[1734897030021,0.00875,95230.0,95229.0,0.73707]
[1734897031453,0.00875,95230.0,95229.0,0.8363784]
[1734897031862,0.00875,95230.0,95229.0,0.8383784]
[1734897032099,0.00875,95230.0,95229.0,0.8363784]
[1734897032457,0.0099214,95230.0,95229.0,0.8443784]
[1734897032658,0.0089214,95230.0,95229.0,0.8363784]
[1734897033065,0.0099214,95230.0,95229.0,0.8443784]
[1734897033467,0.0089214,95230.0,95229.0,0.97626671]
[1734897035059,0.0089214,95230.0,95229.0,0.98426671]
[1734897035060,0.0099214,95230.0,95229.0,0.98426671]
[1734897035189,0.0089214,95230.0,95229.0,0.97626671]
[1734897035529,0.0089214,95230.0,95229.0,0.8363784]
[1734897035673,0.0099214,95230.0,95229.0,0.8443784]
[1734897035876,0.0099214,95230.0,95229.0,0.8363784]
[1734897035877,0.0089214,95230.0,95229.0,0.8363784]
[1734897036316,0.0089214,95230.0,95229.0,0.8443784]
[1734897036317,0.0099214,95230.0,95229.0,0.8443784]
[1734897036497,0.0089214,95230.0,95229.0,0.8363784]
[1734897037082,0.0099214,95230.0,95229.0,0.8443784]
[1734897038025,0.0099214,95230.0,95229.0,0.99472494]
[1734897038237,0.00657152,95256.0,95255.0,0.209962]
[1734897038437,0.00663995,95256.0,95255.0,0.209962]
[1734897038584,0.01495921,95256.0,95255.0,0.209962]
[1734897038771,0.00663995,95256.0,95255.0,0.209962]
[1734897038967,0.01489804,95256.0,95255.0,0.209962]
[1734897039176,6.843e-05,95256.0,95255.0,0.209962]
[1734897039776,6.843e-05,95256.0,95255.0,0.210962]
[1734897040205,0.09965346,95252.0,95246.0,0.209981]
[1734897040573,0.00825573,95251.0,95246.0,0.209981]
[1734897040774,0.0994242,95248.0,95243.0,0.094229]
[1734897040989,0.0994242,95246.0,95243.0,0.094229]
[1734897041774,0.0994242,95246.0,95241.0,0.67734351]
[1734897041775,0.19907766,95242.0,95241.0,0.536]
[1734897042204,0.2073097,95242.0,95241.0,0.536]
[1734897043376,0.0994242,95230.0,95229.0,0.52505]
[1734897043750,0.3360718,95230.0,95229.0,0.52505]
[1734897043951,0.4860718,95230.0,95229.0,0.52505]
[1734897044215,2.8293802,95230.0,95229.0,0.52505]
[1734897044754,2.8293802,95230.0,95229.0,0.5251357]
[1734897044755,2.9293802,95230.0,95229.0,0.5251357]
[1734897045346,2.9293802,95230.0,95229.0,0.3970357]
[1734897045473,3.0293802,95230.0,95229.0,0.2689357]
[1734897045693,3.0293802,95230.0,95229.0,0.2699357]
[1734897045889,3.0293802,95230.0,95229.0,0.2689357]
[1734897046089,2.9293802,95230.0,95229.0,0.2689357]
[1734897046374,2.9313802,95230.0,95229.0,0.2699357]
[1734897046517,2.93795499,95230.0,95229.0,0.2699357]
[1734897046709,0.49453079,95230.0,95229.0,0.2699357]
[1734897046945,0.44514659,95230.0,95229.0,0.2699357]
[1734897047303,0.21384659,95230.0,95229.0,0.2699357]
[1734897048099,0.01476893,95230.0,95229.0,0.2689357]
[1734897048315,0.00819414,95230.0,95229.0,0.2689357]
[1734897048522,0.00819414,95230.0,95229.0,0.2699357]
[1734897048523,0.005,95230.0,95229.0,0.2699357]
[1734897048754,0.0994242,95232.0,95230.0,0.420034]
[1734897049171,0.0994242,95232.0,95229.0,0.2689357]
[1734897049406,0.00810589,95231.0,95229.0,0.2689357]
[1734897050680,0.00810589,95231.0,95229.0,0.4789547]
[1734897050888,0.0994242,95232.0,95229.0,0.6889747]
[1734897051633,0.0994242,95232.0,95229.0,0.4789547]
[1734897051833,0.0001714,95242.0,95231.0,0.210015]
[1734897052076,0.0001714,95242.0,95236.0,0.210004]
[1734897052254,0.00810589,95241.0,95236.0,0.210004]
[1734897052406,0.0001714,95242.0,95236.0,0.210004]
[1734897052616,0.0994242,95237.0,95236.0,0.210004]
[1734897052818,0.0994242,95232.0,95229.0,0.2689357]
[1734897053218,0.00814889,95231.0,95229.0,0.2689357]
[1734897055810,0.0994242,95232.0,95229.0,0.2689357]
[1734897055963,0.00814889,95230.0,95229.0,0.2699357]
[1734897056124,0.0994242,95232.0,95229.0,0.2689357]
[1734897056326,0.00815126,95230.0,95229.0,0.2689357]
[1734897056573,0.001,95231.0,95229.0,0.2689357]
[1734897056827,0.00815126,95230.0,95229.0,0.2689357]
[1734897058208,0.00915126,95230.0,95229.0,0.2689357]
[1734897058366,0.00815126,95230.0,95229.0,0.2689357]
[1734897058741,0.0001712,95231.0,95229.0,0.2689357]
[1734897059074,0.00775758,95230.0,95229.0,0.2689357]
[1734897059278,0.00875758,95230.0,95229.0,0.2689357]
[1734897059480,0.00775758,95230.0,95229.0,0.2689357]
[1734897060480,0.31742804,95230.0,95229.0,0.2689357]
[1734897060695,0.85636358,95230.0,95229.0,0.2689357]
[1734897060914,3.20493613,95230.0,95229.0,0.2689357]
[1734897061125,3.14223319,95230.0,95229.0,0.2689357]
[1734897061696,3.04323319,95230.0,95229.0,0.2689357]
[1734897061845,2.14423319,95230.0,95229.0,0.2689357]
[1734897062044,1.86495082,95230.0,95229.0,0.2689357]
[1734897062403,1.08895082,95230.0,95229.0,0.2699357]
[1734897062570,0.98895082,95230.0,95229.0,0.2699357]
[1734897062947,0.66932479,95230.0,95229.0,0.0010857]
[1734897063127,0.21840779,95230.0,95229.0,0.0010857]
[1734897063832,0.11875433,95230.0,95229.0,0.0010857]
[1734897064023,0.11375433,95230.0,95229.0,8.57e-05]
[1734897064441,0.01075758,95230.0,95229.0,8.57e-05]
[1734897064744,0.10718178,95230.0,95229.0,8.57e-05]
[1734897064933,0.11118178,95230.0,95229.0,8.57e-05]
[1734897065430,0.10718178,95230.0,95229.0,8.57e-05]
[1734897066446,0.00775758,95230.0,95229.0,8.57e-05]
[1734897066650,0.10718178,95230.0,95229.0,8.57e-05]
[1734897068303,0.20988543,95230.0,95229.0,8.57e-05]
[1734897068500,0.20883524,95230.0,95229.0,8.57e-05]
[1734897068707,0.11375402,95230.0,95229.0,8.57e-05]
[1734897068882,0.11675402,95230.0,95229.0,8.57e-05]
[1734897069084,0.01732982,95230.0,95229.0,8.57e-05]
[1734897069286,0.11375402,95230.0,95229.0,8.57e-05]
[1734897069484,0.00775758,95230.0,95229.0,8.57e-05]
[1734897069692,0.0001712,95231.0,95230.0,0.210017]
[1734897069949,0.0001712,95231.0,95230.0,0.3932254]
[1734897071366,0.0001712,95231.0,95230.0,0.4002254]
[1734897071609,0.0001712,95231.0,95230.0,0.217017]
[1734897072349,0.0001712,95231.0,95230.0,0.210017]
[1734897072516,0.0001712,95231.0,95230.0,0.214017]
[1734897073817,0.0001712,95231.0,95230.0,0.210017]
[1734897074027,0.0001712,95231.0,95230.0,0.217017]
[1734897074409,0.0001712,95231.0,95230.0,0.210017]
[1734897074633,0.0001712,95231.0,95230.0,0.211017]
[1734897075201,0.0001712,95231.0,95230.0,0.001]
[1734897075451,0.44907766,95230.0,95229.0,8.57e-05]
[1734897075648,2.87238606,95230.0,95229.0,8.57e-05]
[1734897075867,2.88691129,95230.0,95229.0,8.57e-05]
[1734897077820,2.45191129,95230.0,95229.0,8.57e-05]
[1734897078216,2.45791129,95230.0,95229.0,8.57e-05]
[1734897078441,2.45191129,95230.0,95229.0,8.57e-05]
[1734897078859,2.55791129,95230.0,95229.0,0.0010857]
[1734897079057,2.69961969,95230.0,95229.0,8.57e-05]
[1734897079306,2.59831129,95230.0,95229.0,8.57e-05]
[1734897080517,2.60431129,95230.0,95229.0,8.57e-05]
[1734897080972,2.59831129,95230.0,95229.0,8.57e-05]
[1734897081150,2.60731129,95230.0,95229.0,0.0010857]
[1734897081569,2.60748249,95230.0,95229.0,0.0010857]
[1734897081931,2.59848249,95230.0,95229.0,8.57e-05]
[1734897082501,2.60748249,95230.0,95229.0,0.0010857]
[1734897082705,0.50911266,95222.0,95221.0,8.57e-05]
[1734897082921,3.01025379,95222.0,95221.0,8.57e-05]
[1734897083158,1.32525379,95222.0,95221.0,8.57e-05]
[1734897083630,1.33182603,95222.0,95221.0,8.57e-05]
[1734897084556,1.34082603,95222.0,95221.0,0.0010857]
[1734897084777,1.33182603,95222.0,95221.0,8.57e-05]
[1734897085238,1.34082603,95222.0,95221.0,0.0010857]
[1734897085440,1.33182603,95222.0,95221.0,8.57e-05]
[1734897086411,1.23182603,95222.0,95221.0,8.57e-05]
[1734897086614,1.33182603,95222.0,95221.0,8.57e-05]
[1734897086982,1.34082603,95222.0,95221.0,0.0010857]
[1734897087115,1.33182603,95222.0,95221.0,8.57e-05]
[1734897087328,1.34082603,95222.0,95221.0,0.0010857]
[1734897087545,1.33182603,95222.0,95221.0,8.57e-05]
[1734897087728,0.57351763,95222.0,95221.0,8.57e-05]
[1734897087956,0.57351763,95222.0,95221.0,0.0010857]
[1734897087957,0.58251763,95222.0,95221.0,0.0010857]
[1734897088475,0.57351763,95222.0,95221.0,8.57e-05]
[1734897088701,0.58251763,95222.0,95221.0,0.0010857]
[1734897090064,0.57351763,95222.0,95221.0,8.57e-05]
[1734897090251,0.58251763,95222.0,95221.0,0.0010857]
[1734897090477,0.57351763,95222.0,95221.0,8.57e-05]
[1734897090877,0.58051763,95222.0,95221.0,0.0010857]
[1734897091253,2.43707522,95222.0,95221.0,0.0010857]
[1734897091460,2.19707522,95222.0,95221.0,0.0010857]
[1734897091772,0.67238362,95222.0,95221.0,8.57e-05]
[1734897091937,0.67938362,95222.0,95221.0,0.0010857]
[1734897092380,0.57807522,95222.0,95221.0,0.0010857]
[1734897092740,0.67938362,95222.0,95221.0,0.0010857]
[1734897093512,0.67238362,95222.0,95221.0,8.57e-05]
[1734897093846,1.78538362,95222.0,95221.0,0.0010857]
[1734897094152,0.96738362,95222.0,95221.0,8.57e-05]
[1734897094735,0.97438362,95222.0,95221.0,8.57e-05]
[1734897094909,0.96738362,95222.0,95221.0,8.57e-05]
[1734897095131,1.22330092,95222.0,95221.0,0.0010857]
[1734897095344,1.26970092,95222.0,95221.0,0.0010857]
[1734897095490,1.31103386,95222.0,95221.0,0.0010857]
[1734897095694,1.30446162,95222.0,95221.0,0.0010857]
[1734897096155,1.31103702,95222.0,95221.0,0.0010857]
[1734897096317,1.30503702,95222.0,95221.0,8.57e-05]
[1734897096641,1.30503702,95222.0,95221.0,0.0010857]
[1734897096642,1.31555742,95222.0,95221.0,0.0010857]
[1734897096793,1.32255742,95222.0,95221.0,0.0010857]
[1734897096999,1.31555742,95222.0,95221.0,8.57e-05]
[1734897097197,1.21555742,95222.0,95221.0,8.57e-05]
[1734897097398,1.16763702,95222.0,95221.0,0.0010857]
[1734897097652,0.98633702,95222.0,95221.0,0.0010857]
[1734897097857,1.07638678,95222.0,95221.0,0.0010857]
[1734897098032,0.89138678,95222.0,95221.0,0.0010857]
[1734897098211,0.68138678,95222.0,95221.0,0.0010857]
[1734897098412,1.09438678,95222.0,95221.0,0.0010857]
[1734897100919,0.85538678,95222.0,95221.0,0.0010857]
[1734897101212,0.95538678,95222.0,95221.0,0.0010857]
[1734897102216,0.54907766,95218.0,95217.0,4e-07]
[1734897102348,0.55038606,95218.0,95217.0,4e-07]
[1734897102545,0.65571405,95218.0,95217.0,4e-07]
[1734897102950,0.45571405,95218.0,95217.0,4e-07]
[1734897103221,0.66228945,95218.0,95217.0,4e-07]
[1734897103728,0.57128945,95218.0,95217.0,0.0010004]
[1734897104447,2.41728945,95218.0,95217.0,0.0010004]
[1734897104649,2.15228945,95218.0,95217.0,0.0010004]
[1734897104806,1.09428945,95218.0,95217.0,0.0010004]
[1734897105842,1.19428945,95218.0,95217.0,0.0010004]
[1734897106042,1.18771405,95218.0,95217.0,0.0010004]
[1734897106209,1.18771405,95218.0,95217.0,4e-07]
[1734897106574,0.66471405,95218.0,95217.0,4e-07]
[1734897107310,0.67128944,95218.0,95217.0,4e-07]
[1734897107513,0.66471405,95218.0,95217.0,4e-07]
[1734897107917,0.6712893,95218.0,95217.0,4e-07]
[1734897111321,0.2218651,95218.0,95217.0,4e-07]
[1734897111553,0.11522871,95218.0,95217.0,4e-07]
[1734897111777,0.2157031,95218.0,95217.0,4e-07]
[1734897112019,0.31596131,95218.0,95217.0,4e-07]
[1734897112682,0.47648093,95218.0,95217.0,4e-07]
[1734897112912,0.85215589,95218.0,95217.0,4e-07]
[1734897113120,0.65968093,95218.0,95217.0,4e-07]
[1734897113361,0.75968093,95218.0,95217.0,4e-07]
[1734897114117,0.74916131,95218.0,95217.0,4e-07]
[1734897115021,0.65881948,95218.0,95217.0,4e-07]
[1734897115223,0.47561948,95218.0,95217.0,4e-07]
[1734897115431,0.57561948,95218.0,95217.0,4e-07]
[1734897115633,0.37596602,95218.0,95217.0,4e-07]
[1734897115850,0.47561948,95218.0,95217.0,4e-07]
[1734897116304,0.37596602,95218.0,95217.0,4e-07]
[1734897116486,0.57561948,95218.0,95217.0,8.6e-05]
[1734897116700,0.57579068,95218.0,95217.0,8.6e-05]
[1734897116992,0.47579068,95218.0,95217.0,8.6e-05]
[1734897117396,2.71779068,95218.0,95217.0,8.6e-05]
[1734897118549,0.70979068,95218.0,95217.0,8.6e-05]
[1734897120117,0.85979068,95218.0,95217.0,8.6e-05]
[1734897121876,0.74422791,95218.0,95217.0,8.6e-05]
[1734897122076,0.84365211,95218.0,95217.0,8.6e-05]
[1734897123239,0.83313251,95218.0,95217.0,8.6e-05]
[1734897123644,0.50770831,95218.0,95217.0,8.6e-05]
[1734897123863,0.60713251,95218.0,95217.0,8.6e-05]
[1734897124063,0.59013251,95218.0,95217.0,8.6e-05]
[1734897125345,0.57613251,95218.0,95217.0,8.6e-05]
[1734897125530,0.46613251,95218.0,95217.0,8.6e-05]
[1734897128246,0.60013251,95218.0,95217.0,8.6e-05]
[1734897130184,0.46613251,95218.0,95217.0,8.6e-05]
[1734897130417,2.70813251,95218.0,95217.0,8.6e-05]
[1734897130620,2.80078111,95218.0,95217.0,8.6e-05]
[1734897131023,2.88450013,95218.0,95217.0,8.6e-05]
[1734897131168,2.90078111,95218.0,95217.0,8.6e-05]
[1734897131370,3.00078111,95218.0,95217.0,8.6e-05]
[1734897131775,2.90813251,95218.0,95217.0,8.6e-05]
[1734897132748,3.24962835,95218.0,95217.0,8.6e-05]
[1734897134025,3.24062835,95218.0,95217.0,8.56e-05]
[1734897134233,3.24962835,95218.0,95217.0,0.0010856]
[1734897134435,3.24062835,95218.0,95217.0,8.56e-05]
[1734897134740,3.24962835,95218.0,95217.0,0.0010856]
[1734897135153,2.90813251,95218.0,95217.0,0.0010856]
[1734897136524,3.09217597,95218.0,95217.0,0.0010856]
[1734897137634,3.24999456,95218.0,95217.0,0.0010856]
[1734897139365,3.14999456,95218.0,95217.0,0.0010856]
[1734897139565,3.24999456,95218.0,95217.0,0.0010856]
[1734897139967,3.14999456,95218.0,95217.0,0.0010856]
[1734897140317,3.33518317,95218.0,95217.0,0.0010856]
[1734897140846,3.23518317,95218.0,95217.0,0.0010856]
[1734897141653,3.13552971,95218.0,95217.0,0.0010856]
[1734897141869,2.70813251,95218.0,95217.0,0.0010856]
[1734897149485,2.88393251,95218.0,95217.0,0.0010856]
[1734897149801,0.64193251,95218.0,95217.0,0.0010856]
[1734897149954,2.88393251,95218.0,95217.0,0.0010856]
[1734897150383,2.98393251,95218.0,95217.0,0.0010856]
[1734897150619,3.03133251,95218.0,95217.0,0.0010856]
[1734897151533,3.03133251,95218.0,95200.0,0.00412002]
[1734897151534,0.88235866,95201.0,95200.0,0.00412002]
[1734897151667,0.98366706,95201.0,95200.0,0.00466236]
[1734897152115,3.22566706,95201.0,95200.0,0.00466236]
[1734897152511,3.23224231,95201.0,95200.0,0.00466236]
[1734897152929,3.24024231,95201.0,95200.0,0.00466236]
[1734897153090,3.24487693,95201.0,95200.0,0.00466236]
[1734897153287,3.25746826,95201.0,95200.0,0.00466236]
[1734897153525,3.21006826,95201.0,95200.0,0.00466236]
[1734897153694,3.21906826,95201.0,95200.0,0.00474796]
[1734897154033,3.56093624,95201.0,95200.0,0.00474796]
[1734897154741,3.21906826,95201.0,95200.0,0.00474796]
[1734897155242,3.21006826,95201.0,95200.0,0.00474796]
[1734897155395,3.21906826,95201.0,95200.0,0.00474796]
[1734897155881,2.94461847,95201.0,95200.0,0.00474796]
[1734897156030,2.95361847,95201.0,95200.0,0.00474796]
[1734897156415,2.94461847,95201.0,95200.0,0.00474796]
[1734897156634,2.95361847,95201.0,95200.0,0.00474796]
[1734897156835,3.04614952,95201.0,95200.0,0.00474796]
[1734897157066,3.03714952,95201.0,95200.0,0.00474796]
[1734897157275,3.01655819,95201.0,95200.0,0.00474796]
[1734897157843,2.92402714,95201.0,95200.0,0.00474796]
[1734897158258,2.93302714,95201.0,95200.0,0.00474796]
[1734897158667,2.92402714,95201.0,95200.0,0.00474796]
[1734897158898,2.93302714,95201.0,95200.0,0.00474796]
[1734897159044,2.92839252,95201.0,95200.0,0.00474796]
[1734897160169,3.02839252,95201.0,95200.0,0.00474796]
[1734897162278,3.02839252,95201.0,95135.0,0.07519312]
[1734897162279,0.210225,95136.0,95135.0,0.07519312]
[1734897162472,2.43787846,95136.0,95135.0,0.06211395]
[1734897162735,0.09965346,95123.0,95111.0,0.00075]
[1734897162907,2.10095765,95123.0,95111.0,0.00075]
[1734897163113,1.91064203,95123.0,95111.0,0.00075]
[1734897163338,2.01195043,95123.0,95111.0,0.00075]
[1734897163688,2.02835788,95123.0,95111.0,0.00075]
[1734897163888,1.59654175,95123.0,95111.0,0.00075]
[1734897164089,0.00711755,95123.0,95111.0,0.00075]
[1734897164342,0.00711755,95123.0,95116.0,0.210267]
[1734897164516,0.00711755,95123.0,95111.0,0.21208021]
[1734897164517,0.3477862,95123.0,95111.0,0.211029]
[1734897164731,0.34121095,95123.0,95111.0,0.211029]
[1734897164931,0.34121095,95123.0,95122.0,0.00392697]
[1734897165333,0.34621095,95123.0,95122.0,0.00392697]
[1734897165557,0.34121095,95123.0,95122.0,0.00392697]
[1734897165963,0.34094895,95123.0,95122.0,0.00392697]
[1734897166619,0.13847183,95123.0,95122.0,0.00392697]
[1734897167177,0.0002803,95123.0,95122.0,0.00392697]
[1734897167371,0.0002803,95123.0,95122.0,0.00497809]
[1734897168061,0.0002803,95123.0,95122.0,0.10628649]
[1734897168292,0.0002803,95123.0,95122.0,0.10523537]
[1734897169286,0.0012803,95123.0,95122.0,0.10523537]
[1734897170288,0.0012803,95123.0,95122.0,0.00392697]
[1734897171321,0.00233049,95123.0,95122.0,0.00392697]
[1734897171523,0.00133049,95123.0,95122.0,0.00392697]
[1734897172145,0.10098395,95123.0,95122.0,0.00392697]
[1734897172743,0.33987292,95123.0,95122.0,0.00392697]
[1734897172938,0.33987292,95123.0,95118.0,0.20494036]
[1734897173162,0.33987292,95123.0,95115.0,0.210271]
[1734897173549,0.33987292,95123.0,95114.0,0.0779]
[1734897173750,0.33987292,95123.0,95115.0,0.210271]
[1734897173957,0.13794586,95116.0,95115.0,0.210271]
[1734897175768,0.001,95116.0,95115.0,0.210269]
[1734897175965,0.09194886,95118.0,95115.0,0.210269]
[1734897176171,0.09194886,95116.0,95115.0,0.210269]
[1734897176640,0.09194886,95119.0,95115.0,0.210269]
[1734897177480,0.09965346,95116.0,95105.0,0.210293]
[1734897178089,0.09965346,95116.0,95104.0,8.56e-05]
[1734897178090,0.09965346,95113.0,95104.0,8.56e-05]
[1734897178201,0.09965346,95111.0,95104.0,8.56e-05]
[1734897178623,0.13785751,95106.0,95104.0,0.2103806]
[1734897178895,0.13785751,95106.0,95104.0,8.56e-05]
[1734897179258,0.18392782,95108.0,95104.0,8.56e-05]
[1734897180071,0.09185205,95105.0,95104.0,8.56e-05]
[1734897181127,0.19127625,95105.0,95104.0,8.56e-05]
[1734897181273,0.6733883,95105.0,95104.0,8.56e-05]
[1734897181488,0.58303399,95105.0,95104.0,8.56e-05]
[1734897181888,0.25600686,95105.0,95104.0,8.56e-05]
[1734897182330,0.4450695,95105.0,95104.0,8.56e-05]
[1734897182554,0.3536453,95105.0,95104.0,8.56e-05]
[1734897182702,0.43848684,95105.0,95104.0,8.56e-05]
[1734897183124,0.44648684,95105.0,95104.0,8.56e-05]
[1734897183339,0.54907766,95101.0,95100.0,0.75326859]
[1734897183553,3.0203225,95101.0,95100.0,0.00138444]
[1734897184018,2.99231886,95101.0,95100.0,0.00138444]
[1734897184220,2.96941886,95101.0,95100.0,0.00138444]
[1734897184432,0.55943566,95076.0,95074.0,0.004]
[1734897184641,0.09965346,95085.0,95074.0,0.004]
[1734897184941,0.09965346,95082.0,95074.0,0.004]
[1734897185144,0.0994242,95083.0,95074.0,0.004]
[1734897185145,0.30096186,95076.0,95074.0,0.004]
[1734897185356,0.72538606,95076.0,95074.0,0.004]
[1734897185553,0.45038606,95076.0,95075.0,0.0146175]
[1734897186241,0.45038606,95076.0,95060.0,0.3]
[1734897186242,0.210391,95061.0,95060.0,0.3]
[1734897186462,0.09965346,95067.0,95060.0,0.3]
[1734897186642,0.00105019,95066.0,95060.0,0.3]
[1734897186811,0.00105019,95066.0,95041.0,0.0005758]
[1734897186812,0.210382,95065.0,95041.0,0.0005758]
[1734897186989,0.33815071,95066.0,95045.0,0.10236032]
[1734897187179,0.33815071,95066.0,95045.0,0.00105192]
[1734897187180,0.09965346,95051.0,95045.0,0.00105192]
[1734897187376,0.09965346,95062.0,95044.0,0.0426679]
[1734897187578,0.09965346,95059.0,95045.0,0.00105201]
[1734897187841,0.001,95061.0,95045.0,0.00105201]
[1734897187994,0.09146705,95049.0,95044.0,0.03871991]
[1734897188224,0.09146705,95049.0,95041.0,0.0005758]
[1734897188443,0.09146705,95050.0,95041.0,0.0005758]
[1734897189032,0.001,95049.0,95041.0,0.0005758]
[1734897189473,0.210423,95047.0,95041.0,0.0005758]
[1734897189635,0.09146705,95056.0,95026.0,0.1500856]
[1734897189636,0.210428,95044.0,95026.0,0.1500856]
[1734897189892,0.210433,95042.0,95041.0,0.0005758]
[1734897190231,0.210433,95042.0,95026.0,0.1500856]
[1734897190232,0.05218297,95042.0,95029.0,0.02055765]
[1734897190439,0.05218297,95042.0,95026.0,8.56e-05]
[1734897190440,0.09965346,95032.0,95011.0,0.94801442]
[1734897190634,0.0994242,95038.0,95011.0,0.94801442]
[1734897190635,0.0994242,95029.0,95011.0,0.94801442]
[1734897190835,0.09965346,95024.0,95011.0,0.94801442]
[1734897191138,0.00131549,95023.0,95011.0,0.94801442]
[1734897191493,0.02087084,95023.0,95011.0,0.94801442]
[1734897191692,0.09965346,95012.0,95011.0,0.94801442]
[1734897192093,0.10019476,95012.0,95011.0,0.94801442]
[1734897192271,0.0005413,95012.0,95011.0,0.94801442]
[1734897193044,0.0005413,95012.0,95011.0,0.42101321]
[1734897194304,0.0015413,95012.0,95011.0,0.42101321]
[1734897194504,0.0005413,95012.0,95011.0,0.42101321]
[1734897194927,0.0015413,95012.0,95011.0,0.42101321]
[1734897195131,0.0005413,95012.0,95011.0,0.42101321]
[1734897195606,0.0015413,95012.0,95011.0,0.42101321]
[1734897195884,0.10119476,95012.0,95011.0,0.42101321]
[1734897196087,0.45192736,95012.0,95011.0,0.42101321]
[1734897196289,2.69554511,95012.0,95011.0,0.42101321]
[1734897196476,1.91254511,95012.0,95011.0,0.42101321]
[1734897196643,1.42151765,95012.0,95011.0,0.42101321]
[1734897197079,0.54228503,95012.0,95011.0,0.42101321]
[1734897197300,3.03659343,95012.0,95011.0,0.1152187]
[1734897197709,3.13559343,95012.0,95011.0,0.1152187]
[1734897197926,0.19907766,95001.0,95000.0,0.01676331]
[1734897198105,2.93499383,95001.0,95000.0,0.01676331]
[1734897198288,2.93348671,95001.0,95000.0,0.01676331]
[1734897198488,2.91357894,95001.0,95000.0,7.1e-07]
[1734897198685,0.67157894,95001.0,95000.0,7.1e-07]
[1734897199098,0.68848817,95001.0,95000.0,7.1e-07]
[1734897199299,1.49797495,95001.0,95000.0,7.1e-07]
[1734897199526,1.37678207,95001.0,95000.0,7.1e-07]
[1734897199729,1.01703893,95001.0,95000.0,7.1e-07]
[1734897199950,0.80948678,95001.0,95000.0,0.12728641]
[1734897200175,0.53703764,95001.0,95000.0,0.12728641]
[1734897200383,0.53703764,95001.0,95000.0,4.1e-07]
[1734897200384,2.43046184,95001.0,95000.0,4.1e-07]
[1734897200586,0.84546184,95001.0,95000.0,4.1e-07]
[1734897200795,0.29907766,94981.0,94980.0,0.0143555]
[1734897201065,2.4427326,94981.0,94980.0,0.0143555]
[1734897201266,2.28638606,94981.0,94980.0,0.0143555]
[1734897201973,0.45038606,94981.0,94980.0,0.0143555]
[1734897202092,0.65050283,94981.0,94980.0,0.0143555]
[1734897202312,0.75792703,94981.0,94980.0,0.0143555]
[1734897203393,2.30592703,94981.0,94980.0,0.0143555]
[1734897203591,2.69292703,94981.0,94980.0,0.0143555]
[1734897203999,2.90192703,94981.0,94980.0,0.0143555]
[1734897204152,0.210653,94943.0,94928.0,8e-05]
[1734897204352,0.19907766,94944.0,94928.0,8e-05]
[1734897204672,0.0994242,94953.0,94930.0,0.19203447]
[1734897204873,0.0994242,94959.0,94937.0,0.10183919]
[1734897205077,0.15,94965.0,94937.0,0.10183919]
[1734897205078,0.0994242,94954.0,94937.0,0.10183919]
[1734897205554,0.0994242,94953.0,94937.0,0.10183919]
[1734897205755,0.09996483,94954.0,94937.0,0.10183919]
[1734897205957,0.0994242,94952.0,94937.0,0.10183919]
[1734897206702,0.0994242,94952.0,94934.0,0.00034654]
[1734897206703,0.09965346,94942.0,94928.0,8e-05]
[1734897206903,0.00131666,94941.0,94928.0,8e-05]
[1734897207121,0.0994242,94951.0,94937.0,0.1201]
[1734897207330,0.1013084,94940.0,94928.0,8e-05]
[1734897207526,0.0994242,94942.0,94928.0,8e-05]
[1734897207847,0.0994242,94944.0,94928.0,8e-05]
[1734897208064,0.006,94942.0,94930.0,0.21102654]
[1734897208271,0.00054063,94954.0,94930.0,0.21102654]
[1734897208386,0.00054063,94954.0,94942.0,0.210652]
[1734897208609,0.00054063,94954.0,94944.0,0.1201]